fUSD/lending_fUSD_20240910
["ID","MTS","AMOUNT","RATE_DAILY","PERIOD"]
[337709656,1725982238218,-559.2,0.00013,2]
[337709794,1725982239956,-539.29798667,0.00013,2]
[337709801,1725982240008,-407.37340439,0.00013,2]
[337709808,1725982240064,-42708.97464155,0.00013,2]
[337709810,1725982240073,-642.0,0.00013,2]
[337709812,1725982240082,-48258.70691148,0.00013,2]
[337709816,1725982240119,-651.78893078,0.00012293,2]
[337709819,1725982240130,-286.312748,0.00012293,2]
[337709821,1725982240141,-271.62392827,0.00012293,2]
[337709823,1725982240153,-8099.27439295,0.00012293,2]
[337709825,1725982240162,-1871.21425253,0.00013,2]
[337710159,1725982243522,-4123.86206575,0.00013,2]
[337710161,1725982243539,-1261.31414876,0.00013,2]
[337710163,1725982243550,-28967.6829733,0.00013,2]
[337710165,1725982243562,-292.35005528,0.00013,2]
[337710385,1725982246114,-705.14956425,0.00012293,2]
[337710387,1725982246126,-104.85043575,0.00012293,2]
[337710389,1725982246135,-64969.85511108,0.00013,2]
[337710403,1725982246263,-498.62,0.00013,2]
[337710405,1725982246275,-3047.27676525,0.00013,2]
[337710407,1725982246287,-48876.23336496,0.00013,2]
[337710409,1725982246299,-46433.12669752,0.00013,2]
[337710412,1725982246316,-3559.9489424,0.00013,2]
[337710418,1725982246368,-2762.88210467,0.00013,2]
[337710573,1725982299862,150.0,9.315e-05,2]
[337710574,1725982299886,13.95,9.315e-05,2]
[337710575,1725982300127,136.05,0.00011579,2]
[337710576,1725982300150,27.9,0.00011579,2]
[337710577,1725982336370,150.0,0.00010265,2]
[337710578,1725982336396,150.0,0.00010265,2]
[337710579,1725982336417,150.0,0.00010265,2]
[337710580,1725982336439,50.0,0.00010265,2]
[337710581,1725982356690,150.0,0.00011233,2]
[337710582,1725982356711,150.0,0.00011233,2]
[337710583,1725982356733,150.0,0.00011233,2]
[337710584,1725982356756,150.0,0.00011233,2]
[337710585,1725982356777,150.0,0.00011233,2]
[337710586,1725982356798,202.46627418,0.00011233,2]
[337710587,1725982356825,47.53372582,0.00011233,2]
[337710588,1725982358475,500.0,0.00010265,2]
[337710589,1725982368441,150.0,0.00010959,2]
[337710590,1725982368462,60.21,0.00010959,2]
[337710591,1725982580678,150.0,0.00011,2]
[337710592,1725982580700,150.0,0.00011,2]
[337710593,1725982580721,150.0,0.00011,2]
[337710594,1725982580742,150.0,0.00011,2]
[337710595,1725982580763,150.0,0.00011,2]
[337710596,1725982628696,150.0,0.00010959,2]
[337710597,1725982628722,129.98,0.00010959,2]
[337710598,1725982694301,150.0,0.00011233,2]
[337710599,1725982694324,100.0,0.00011233,2]
[337710600,1725982737136,150.0,0.00011233,2]
[337710601,1725982737157,70.02,0.00011233,2]
[337710602,1725982748632,500.0,0.00011233,2]
[337710603,1725982748964,500.0,0.00011233,2]
[337710604,1725982813101,245.65,0.00011953,2]
[337710605,1725982825498,150.0,0.00011714,2]
[337710606,1725982825521,150.0,0.00011714,2]
[337710607,1725982825546,150.0,0.00011714,2]
[337710608,1725982825572,150.0,0.00011714,2]
[337710609,1725982825596,150.0,0.00011714,2]
[337710610,1725982825620,150.0,0.00011714,2]
[337710611,1725982825644,150.0,0.00011714,2]
[337710612,1725982825669,11.58390872,0.00011714,2]
[337710613,1725982853762,150.0,0.00011975,2]
[337710614,1725982853784,50.0,0.00011975,2]
[337710615,1725982860065,162.4,0.00010027,2]
[337710616,1725982863355,150.0,0.00011735,2]
[337710617,1725982863376,150.0,0.00011735,2]
[337710618,1725982863398,150.0,0.00011735,2]
[337710619,1725982863419,150.0,0.00011735,2]
[337710620,1725982863440,150.0,0.00011735,2]
[337710621,1725982863462,150.0,0.00011735,2]
[337710622,1725982863484,150.0,0.00011735,2]
[337710623,1725982863506,150.0,0.00011735,2]
[337710624,1725982863529,150.0,0.00011735,2]
[337710625,1725982863551,150.0,0.00011735,2]
[337710626,1725982863582,150.0,0.00011735,2]
[337710627,1725982863604,104.17183082,0.00011735,2]
[337710628,1725982872312,150.0,7.781e-05,7]
[337710629,1725982872341,150.0,7.781e-05,7]
[337710630,1725982874214,150.0,0.00010959,2]
[337710631,1725982874236,104.9,0.00010959,2]
[337710632,1725982891389,250.0,0.00011914,2]
[337710634,1725983185213,251.39949522,0.00011943,2]
[337710635,1725983199801,150.0,0.00011828,2]
[337710636,1725983199824,100.0,0.00011828,2]
[337710637,1725983214079,50.0,0.00011826,2]
[337710638,1725983214104,150.0,0.00011826,2]
[337710639,1725983214130,28.84,0.00011826,2]
[337710641,1725983267085,121.16,0.00011846,2]
[337710642,1725983267107,28.84,0.00011846,2]
[337710643,1725983277161,121.16,0.00010959,2]
[337710644,1725983277187,150.0,0.00010959,2]
[337710645,1725983277212,28.84,0.00010959,2]
[337710646,1725983284707,225.00108169,0.00011846,2]
[337710647,1725983284737,20.67891831,0.00011846,2]
[337710648,1725983285979,220.02,0.00011826,2]
[337710649,1725983287777,585.88,0.00010959,2]
[337710650,1725983365186,214.28,0.00011806,2]
[337710998,1725983432222,-328.48,0.000122,2]
[337710999,1725983432234,-118.40732184,0.000122,3]
[337711000,1725983432300,-7303.59267816,0.000122,3]
[337711001,1725983432312,-300.0,0.00012212,2]
[337711002,1725983432325,-27.69725008,0.00012213,2]
[337711003,1725983432363,-275.1408984,0.00012213,2]
[337711004,1725983432426,-9942.15249262,0.00012213,2]
[337711006,1725983432494,-577.5783648,0.00012213,2]
[337711012,1725983438138,-320.83933034,0.00012213,2]
[337711013,1725983438152,-702.12138426,0.00012213,2]
[337711041,1725983438787,-28868.12484291,0.00012213,2]
[337711044,1725983438806,-296.50190526,0.00012213,2]
[337711046,1725983438819,-3796.84353133,0.00012213,2]
[337711047,1725983438829,-162.4,0.00012291,2]
[337711048,1725983438840,-10291.18900073,0.00012296,2]
[337711049,1725983438855,-347.24805043,0.00012296,2]
[337711050,1725983438865,-150.0,0.00012296,2]
[337711051,1725983438876,-150.0,0.00012301,2]
[337711052,1725983438887,-3745.68,0.00012331,2]
[337711053,1725983438897,-161.805,0.00012342,2]
[337711054,1725983438907,-3782.26,0.00012342,2]
[337711055,1725983438918,-150.99,0.00012342,2]
[337711056,1725983438927,-624.0,0.00012343,2]
[337711057,1725983438938,-1546.0,0.00012343,2]
[337711058,1725983438948,-443.774,0.00012343,2]
[337711059,1725983438959,-931.0,0.00012343,2]
[337711060,1725983438969,-557.0,0.00012343,2]
[337711061,1725983438979,-1896.0,0.00012343,2]
[337711062,1725983438990,-248.0,0.00012343,2]
[337711063,1725983439002,-805.0,0.00012343,2]
[337711064,1725983439013,-3343.0,0.00012343,2]
[337711065,1725983439023,-1119.0,0.00012343,2]
[337711066,1725983439032,-1921.0,0.00012343,2]
[337711067,1725983439044,-1409.297,0.00012343,2]
[337711068,1725983439053,-1145.0,0.00012343,2]
[337711069,1725983439064,-150.0,0.00012343,2]
[337711070,1725983439075,-9309.0,0.00012343,2]
[337711071,1725983439086,-1079.0,0.00012343,2]
[337711072,1725983439097,-157.28,0.00012433,2]
[337711073,1725983439107,-301.28,0.000125,2]
[337711074,1725983439117,-997.82,0.000125,2]
[337711075,1725983439128,-11508.0,0.000126,5]
[337711076,1725983439138,-1000.0,0.00012637,2]
[337711077,1725983439151,-868.29711525,0.0001274,2]
[337711078,1725983439161,-1500.0,0.00012776,2]
[337711079,1725983439171,-418.6212812,0.00012787,2]
[337711080,1725983439182,-1393.87503915,0.000128,2]
[337711081,1725983439192,-230.6938944,0.00012804,2]
[337711082,1725983439203,-1393.87503913,0.00012811,2]
[337711083,1725983439213,-1393.87503913,0.00012822,2]
[337711084,1725983439224,-1393.87503913,0.00012833,2]
[337711085,1725983439236,-150.0,0.00012844,2]
[337711086,1725983439249,-1393.87503913,0.00012844,2]
[337711087,1725983439259,-1393.87503913,0.00012856,2]
[337711088,1725983439270,-1393.87503913,0.00012867,2]
[337711089,1725983439281,-1126.6169,0.0001287,2]
[337711090,1725983439293,-500.0,0.00012877,2]
[337711091,1725983439308,-1393.87503913,0.00012878,2]
[337711092,1725983439318,-150.0,0.00012888,2]
[337711093,1725983439329,-1393.87503913,0.00012889,2]
[337711094,1725983439340,-400.8773,0.000129,2]
[337711095,1725983439352,-4879.7196,0.000129,2]
[337711096,1725983439362,-817.3878,0.000129,2]
[337711097,1725983439375,-3840.68745215,0.000129,2]
[337711098,1725983439397,-1125.90304785,0.000129,2]
[337711099,1725983439407,-13935.96673,0.000129,2]
[337711100,1725983439420,-294.38037,0.000129,2]
[337711101,1725983439430,-181.45,0.000129,2]
[337711102,1725983439440,-272.07680128,0.000129,2]
[337711103,1725983439451,-172.76901356,0.000129,2]
[337711104,1725983439462,-5344.0901,0.000129,2]
[337711105,1725983439473,-1420.05753133,0.000129,2]
[337711106,1725983439484,-192.27138866,0.000129,2]
[337711107,1725983439497,-1393.87503913,0.000129,2]
[337711108,1725983439508,-150.0,0.00012901,2]
[337711109,1725983439518,-500.0,0.00012973,2]
[337711110,1725983439530,-152.41,0.0001299,2]
[337711111,1725983439543,-152.41,0.0001299,2]
[337711112,1725983439555,-152.41,0.0001299,2]
[337711113,1725983439565,-152.41,0.0001299,2]
[337711114,1725983439576,-152.41,0.0001299,2]
[337711115,1725983439587,-150.0,0.00012996,2]
[337711116,1725983439597,-341.47763238,0.00012999,2]
[337711117,1725983439608,-500.0,0.00012999,2]
[337711118,1725983439619,-500.0,0.00012999,2]
[337711119,1725983439629,-412.9949526,0.00012999,2]
[337711120,1725983439639,-1454.78980839,0.00012999,3]
[337711121,1725983439650,-1454.78980838,0.00012999,3]
[337711122,1725983439660,-3448.4977529,0.00012999,2]
[337711123,1725983439672,-637.0,0.00013,2]
[337711124,1725983439683,-271138.53258457,0.00013,2]
[337711125,1725983439693,-28229.07635923,0.00013,2]
[337711126,1725983439710,-647.28952379,0.00013,2]
[337711127,1725983439727,-879.14563992,0.00013,2]
[337711128,1725983439740,-1809.55925006,0.00013,2]
[337711129,1725983439756,-4917.154168,0.00013,2]
[337711130,1725983439769,-1120.66502401,0.00013,2]
[337711131,1725983439783,-5485.0,0.00013,2]
[337711132,1725983439807,-511.67571096,0.00013,2]
[337711133,1725983439820,-2646.2132724,0.00013,2]
[337711134,1725983439832,-412.45240119,0.00013,2]
[337711166,1725983440207,-500.0,0.00012973,2]
[337711168,1725983440217,-400.4367016,0.00013,2]
[337711170,1725983440230,-527.39556223,0.00013,2]
[337711172,1725983440243,-337.99639873,0.00013,2]
[337711175,1725983440259,-1391.73850551,0.00013,2]
[337711177,1725983440274,-231284.30041583,0.00013,2]
[337711185,1725983440343,-342.108,0.00013,2]
[337711187,1725983440355,-1109.54057501,0.00013,2]
[337711218,1725983440730,-5843.81203055,0.00013,2]
[337711219,1725983440756,-1067.39875399,0.00013,2]
[337711220,1725983440771,-387.72733961,0.00013,2]
[337711221,1725983440785,-4905.37844259,0.00013,2]
[337711224,1725983440827,-2961.95,0.00013,2]
[337711226,1725983440839,-352.75909744,0.00013,2]
[337711228,1725983440851,-707.12336694,0.00013,2]
[337711231,1725983440867,-4875.40612905,0.00013,2]
[337711233,1725983440882,-298.31412405,0.00013,2]
[337711236,1725983440902,-439.016,0.00013,2]
[337711239,1725983440919,-18918.55938786,0.00013,2]
[337711241,1725983440931,-15607.50524251,0.00013,2]
[337711519,1725983443789,-5425.41999999,0.00013,2]
[337711521,1725983443800,-511.149995,0.00013,2]
[337711525,1725983443826,-150.0,0.00012343,2]
[337711526,1725983443836,-155.9549999,0.00013,2]
[337711530,1725983443857,-1136.44,0.00013,2]
[337711750,1725983446572,-624.0,0.00013,2]
[337711752,1725983446582,-7235.65779715,0.00013,2]
[337712656,1725983456892,159.99,0.00010525,2]
[337712673,1725983493393,500.0,0.00010265,2]
[337712674,1725983517010,201.0,0.000118,2]
[337712675,1725983517375,201.0,0.0001159,2]
[337712676,1725983517713,201.0,0.0001138,2]
[337712677,1725983518042,201.0,0.0001117,2]
[337712678,1725983518881,201.0,0.0001097,2]
[337712679,1725983542874,1000.0,0.00011898,2]
[337712680,1725983548022,274.0,0.000118,2]
[337712681,1725983548286,274.0,0.0001159,2]
[337712682,1725983548610,274.0,0.0001138,2]
[337712683,1725983549154,274.0,0.0001117,2]
[337712684,1725983549628,274.0,0.0001097,2]
[337712685,1725983549943,274.0,0.0001076,2]
[337712686,1725983550266,274.0,0.0001055,2]
[337712687,1725983550603,274.0,0.0001034,2]
[337712688,1725983559592,500.0,0.00010265,2]
[337712689,1725983585455,500.0,0.00010265,2]
[337712690,1725983630375,504.85,0.00011871,2]
[337712691,1725983686213,250.0,0.00011861,2]
[337712693,1725983695953,504.88,0.00011233,2]
[337712694,1725983770486,4182.92,0.00011871,2]
[337712695,1725983783782,545.64,0.00011233,2]
[337712696,1725983784030,545.64,0.00011236,2]
[337712697,1725983784251,545.64,0.00011239,2]
[337712698,1725983784478,545.64,0.00011242,2]
[337712699,1725983784712,545.64,0.00011245,2]
[337712700,1725983784989,545.64,0.00011248,2]
[337712701,1725983785463,545.64,0.00011251,2]
[337712702,1725983785698,545.64,0.00011254,2]
[337712703,1725983785972,545.64,0.00011257,2]
[337712704,1725983786383,545.64,0.0001126,2]
[337712705,1725983786666,545.64,0.00011263,2]
[337712706,1725983786961,545.64,0.00011266,2]
[337712707,1725983787163,545.64,0.00011269,2]
[337712708,1725983787361,545.64,0.00011272,2]
[337712709,1725983787597,545.64,0.00011275,2]
[337712710,1725983787816,545.64,0.00011278,2]
[337712711,1725983788092,545.64,0.00011281,2]
[337712712,1725983788329,545.64,0.00011284,2]
[337712713,1725983788555,545.64,0.00011287,2]
[337712714,1725983788766,545.64,0.00011289,2]
[337712716,1725983824393,174.37,0.00011851,2]
[337712718,1725983853353,203.48,0.00011233,2]
[337712719,1725983932105,159.0,0.00011838,2]
[337712720,1725983959920,1548.95,0.00011233,2]
[337712721,1725983965857,156.68,0.00010959,2]
[337712722,1725983996464,152.0,0.00011935,3]
[337712723,1725984025830,151.99,9.315e-05,2]
[337712724,1725984026274,151.99,0.00011579,2]
[337712725,1725984042566,200.0,0.00011233,2]
[337712728,1725984231945,250.0,0.00011829,2]
[337712730,1725984402457,750.0,0.00011,2]
[337712732,1725984545756,151.99,9.895e-05,2]
[337712733,1725984580040,840.0,0.00011233,2]
[337712759,1725984630131,237.21,0.00011812,2]
[337712784,1725984632359,-201.0,0.0001201,2]
[337712786,1725984632369,-215.0,0.0001201,2]
[337712788,1725984632379,-274.0,0.0001201,2]
[337712790,1725984632388,-295.63,0.000122,2]
[337712792,1725984632398,-300.0,0.000122,2]
[337712794,1725984632407,-214.37,0.000122,4]
[337712796,1725984632421,-585.63,0.000122,4]
[337712798,1725984632433,-891.15718249,0.00012201,2]
[337712800,1725984632450,-762.49581751,0.00012201,2]
[337712801,1725984632460,-805.0,0.00012201,2]
[337712802,1725984632471,-1551.16973249,0.00012201,2]
[337712803,1725984632483,-299.25245189,0.00012201,2]
[337712804,1725984632495,-70.57781562,0.00012201,2]
[337712805,1725984632505,-248.0,0.00012201,2]
[337712806,1725984632515,-693.63503878,0.00012201,2]
[337712807,1725984632529,-425.36496122,0.00012201,2]
[337712808,1725984632539,-201.0,0.0001221,2]
[337712809,1725984632549,-215.0,0.0001221,2]
[337712810,1725984632560,-274.0,0.0001221,2]
[337712811,1725984632571,-150.0,0.00012224,2]
[337712812,1725984632582,-150.0,0.00012226,2]
[337712813,1725984632592,-1145.0,0.00012226,2]
[337712814,1725984632602,-9309.0,0.00012226,2]
[337712815,1725984632612,-1600.0,0.000123,4]
[337712816,1725984632621,-150.0,0.00012343,2]
[337712818,1725984632631,-448.334,0.00012343,2]
[337712819,1725984632641,-510.40397571,0.000124,2]
[337712820,1725984632652,-242.09602429,0.000124,2]
[337712821,1725984632662,-462.75220027,0.000124,2]
[337712822,1725984632675,-289.74779973,0.000124,2]
[337712823,1725984632684,-483.71,0.000124,2]
[337712824,1725984632694,-2368.03,0.000124,2]
[337712825,1725984632704,-2400.0,0.000124,4]
[337712829,1725984632960,-201.0,0.0001242,2]
[337712830,1725984632972,-215.0,0.0001242,2]
[337712831,1725984632982,-274.0,0.0001242,2]
[337712832,1725984632991,-151.99,0.00012425,2]
[337712833,1725984633002,-312.72,0.000125,2]
[337712834,1725984633010,-995.68,0.000125,2]
[337712835,1725984633020,-350.27,0.000125,2]
[337712836,1725984633029,-3200.0,0.000125,4]
[337712837,1725984633038,-161.80535198,0.00012531,2]
[337712838,1725984633048,-4000.0,0.000126,4]
[337712839,1725984633057,-201.0,0.0001263,2]
[337712840,1725984633067,-215.0,0.0001263,2]
[337712841,1725984633076,-274.0,0.0001263,2]
[337712842,1725984633086,-1000.0,0.00012636,2]
[337712843,1725984633096,-203.48,0.00012637,2]
[337712844,1725984633105,-200.0,0.00012637,2]
[337712845,1725984633116,-840.0,0.00012637,2]
[337712846,1725984633126,-800.0,0.000127,4]
[337712847,1725984633135,-150.0,0.00012767,2]
[337712848,1725984633144,-150.0,0.00012774,2]
[337712849,1725984633154,-150.0,0.00012775,2]
[337712850,1725984633163,-150.0,0.00012779,2]
[337712851,1725984633173,-150.0,0.00012791,2]
[337712852,1725984633182,-150.0,0.00012798,2]
[337712853,1725984633191,-800.0,0.000128,4]
[337712854,1725984633201,-1000.0,0.00012818,2]
[337712855,1725984633210,-150.0,0.00012836,2]
[337712856,1725984633219,-150.0,0.00012837,2]
[337712857,1725984633229,-201.0,0.0001284,2]
[337712858,1725984633239,-201.0,0.0001284,2]
[337712859,1725984633250,-215.0,0.0001284,2]
[337712860,1725984633259,-274.0,0.0001284,2]
[337712861,1725984633268,-316.0695372,0.00012845,2]
[337712862,1725984633278,-150.0,0.0001287,2]
[337712863,1725984633287,-1314.98504,0.0001287,2]
[337712864,1725984633296,-150.0,0.00012871,2]
[337712865,1725984633305,-500.0,0.00012877,2]
[337712866,1725984633315,-1028.50102205,0.00012879,2]
[337712867,1725984633324,-1000.0,0.00012889,2]
[337712868,1725984633333,-152.0,0.00012898,4]
[337712869,1725984633342,-150.0,0.00012898,2]
[337712870,1725984633351,-2155.58,0.000129,2]
[337712871,1725984633360,-8039.5438,0.000129,2]
[337712872,1725984633369,-1000.0,0.000129,2]
[337712873,1725984633379,-13357.9253,0.000129,2]
[337712874,1725984633388,-350.36649165,0.000129,2]
[337712875,1725984633398,-800.0,0.000129,4]
[337712876,1725984633409,-710.02876566,0.000129,2]
[337712877,1725984633419,-4530.67210711,0.000129,2]
[337712878,1725984633428,-150.0,0.00012919,2]
[337712879,1725984633437,-150.0,0.00012931,2]
[337712880,1725984633447,-1000.0,0.00012944,2]
[337712881,1725984633456,-150.0,0.0001295,2]
[337712882,1725984633465,-225.80218857,0.00012969,2]
[337712883,1725984633475,-500.0,0.00012973,2]
[337712884,1725984633484,-416.8955371,0.00012973,2]
[337712885,1725984633493,-425.0,0.00012985,2]
[337712886,1725984633502,-202.05770887,0.0001299,2]
[337712887,1725984633511,-202.05770887,0.0001299,2]
[337712888,1725984633521,-152.41,0.0001299,2]
[337712889,1725984633530,-152.41,0.0001299,2]
[337712890,1725984633540,-152.41,0.0001299,2]
[337712891,1725984633549,-152.41,0.0001299,2]
[337712892,1725984633559,-152.41,0.0001299,2]
[337712893,1725984633568,-152.41,0.0001299,2]
[337712894,1725984633578,-152.41,0.0001299,2]
[337712895,1725984633587,-152.41,0.0001299,2]
[337712896,1725984633596,-152.41,0.0001299,2]
[337712897,1725984633605,-152.41,0.0001299,2]
[337712898,1725984633615,-152.41,0.0001299,2]
[337712899,1725984633625,-152.41,0.0001299,2]
[337712900,1725984633634,-152.41,0.0001299,2]
[337712901,1725984633643,-152.41,0.0001299,2]
[337712902,1725984633652,-152.41,0.0001299,2]
[337712903,1725984633662,-152.41,0.0001299,2]
[337712904,1725984633674,-152.41,0.0001299,2]
[337712905,1725984633684,-152.41,0.0001299,2]
[337712906,1725984633693,-152.41,0.0001299,2]
[337712907,1725984633703,-152.41,0.0001299,2]
[337712908,1725984633712,-152.41,0.0001299,2]
[337712909,1725984633721,-152.41,0.0001299,2]
[337712910,1725984633731,-152.41,0.0001299,2]
[337712911,1725984633740,-152.41,0.0001299,2]
[337712912,1725984633750,-152.41,0.0001299,2]
[337712913,1725984633760,-152.41,0.0001299,2]
[337712914,1725984633769,-152.41,0.0001299,2]
[337712915,1725984633779,-152.41,0.0001299,2]
[337712916,1725984633788,-152.41,0.0001299,2]
[337712917,1725984633798,-152.41,0.0001299,2]
[337712918,1725984633807,-152.41,0.0001299,2]
[337712919,1725984633817,-150.0,0.00012991,2]
[337712920,1725984633826,-1825.37832583,0.00012999,2]
[337712921,1725984633836,-332.02068214,0.00012999,2]
[337712922,1725984633846,-218.99364362,0.00012999,2]
[337712923,1725984633855,-580.32321266,0.00012999,2]
[337712924,1725984633865,-1724.24887645,0.00012999,2]
[337712925,1725984633874,-702.0,0.00013,2]
[337712926,1725984633883,-43424.88690001,0.00013,2]
[337712932,1725984638242,-547.1742696,0.00012226,2]
[337712934,1725984638298,-364.55288824,0.00012226,2]
[337712935,1725984638310,-167.27284216,0.00012226,2]
[337712936,1725984638320,-205.63281062,0.00013,2]
[337712937,1725984638352,-2533.49215983,0.00013,2]
[337712938,1725984638364,-37781.46059237,0.00013,2]
[337712939,1725984638375,-541.21067,0.00013,2]
[337712940,1725984638409,-329.78452034,0.00013,2]
[337712941,1725984638460,-3710.00806248,0.00013,2]
[337712942,1725984638514,-1231.76374629,0.00013,2]
[337712943,1725984638526,-1214.52265281,0.00013,2]
[337712945,1725984640297,-266.06,0.000122,2]
[337712946,1725984640307,-568.24484756,0.00013,2]
[337712947,1725984640319,-152819.7346993,0.00013,2]
[337712948,1725984640329,-112878.47274283,0.00013,2]
[337712949,1725984640339,-826247.14531017,0.00013,2]
[337712950,1725984640349,-160746.87304179,0.00013,2]
[337712951,1725984640359,-30000.0,0.00013,2]
[337712952,1725984640368,-583828.62733321,0.00013,2]
[337712953,1725984640380,-948647.46023055,0.00013,2]
[337712954,1725984640390,-971817.98565509,0.00013,2]
[337712955,1725984640456,-40435.81690446,0.00013,2]
[337712956,1725984640907,-543.48389372,0.00013,2]
[337713148,1725984643239,-632.0,0.00013,2]
[337713150,1725984643248,-5504.255125,0.00013,2]
[337713152,1725984643259,-28350.0,0.00013,2]
[337713155,1725984643271,-445094.2426514,0.00013,2]
[337713157,1725984643280,-397173.78367303,0.00013,2]
[337713159,1725984643293,-1393952.7446638,0.00013,2]
[337713161,1725984643302,-208192.58547703,0.00013,2]
[337713164,1725984643321,-22982.3562768,0.00013,2]
[337713168,1725984643351,-1363.125,0.00013,2]
[337713171,1725984643363,-116260.0,0.00013,2]
[337713173,1725984643374,-129280.0,0.00013,2]
[337713175,1725984643385,-9480.11647319,0.00013,2]
[337713177,1725984643397,-2894.76552035,0.00013,2]
[337713245,1725984644057,348.020449,0.0001182,2]
[337713247,1725984644069,-1360.0,0.00013,2]
[337713254,1725984644126,348.020449,0.00011968,2]
[337713277,1725984644349,155.770601,0.0001182,2]
[337713489,1725984646347,-348.020449,0.00012115,2]
[337713492,1725984646357,-348.020449,0.00012263,2]
[337713495,1725984646366,-348.020449,0.00012411,2]
[337713498,1725984646376,-1724.24887645,0.00012999,2]
[337713501,1725984646385,-4465.64451639,0.00013,2]
[337713504,1725984646400,-547.51,0.00013,2]
[337713516,1725984646453,-440.56,0.00013,2]
[337713542,1725984646667,-3234.44000024,0.00013,2]
[337713544,1725984646679,-2064.71264005,0.00013,2]
[337713546,1725984646690,-611.81478294,0.00013,2]
[337713620,1725984647457,153.718437,0.0001182,2]
[337713650,1725984647730,165.875381,0.0001182,2]
[337713668,1725984648039,165.875381,0.00011968,2]
[337713867,1725984704663,212.231187,0.0001182,2]
[337713868,1725984771509,206.0,0.000118,2]
[337713869,1725984771835,206.0,0.0001159,2]
[337713870,1725984784252,1866.86,0.00011233,2]
[337713871,1725984856836,1926.03,0.00011985,2]
[337713872,1725984870502,1135.94451954,0.00011745,2]
[337713873,1725984885838,515.61,0.00011985,2]
[337713874,1725984896655,1411.67,0.00011233,2]
[337713877,1725984972036,520.68056739,0.00011972,2]
[337713879,1725985063857,157.84,9.908e-05,2]
[337713880,1725985072853,16722.3,0.00011799,2]
[337713882,1725985107235,206.54,0.00010959,2]
[337713883,1725985156728,496.0,0.00011835,2]
[337713884,1725985187667,220.36,0.00011233,2]
[337713885,1725985203743,162.61,0.00012,2]
[337713886,1725985311499,250.0,0.00011233,2]
[337713888,1725985395099,250.0,0.00011233,2]
[337713890,1725985642606,157.84,9.952e-05,2]
[337713891,1725985646856,603.2,0.00011853,2]
[337713893,1725985711174,2030.7105,0.0001191,2]
[337713901,1725985748599,166.16,0.00011856,2]
[337713904,1725985786359,277.49,0.00010959,2]
[337713905,1725985805298,162.61,0.00012,2]
[337713906,1725985831391,-206.0,0.0001201,2]
[337713907,1725985831401,-514.9049,0.0001208,2]
[337713908,1725985831410,-165.875381,0.00012115,2]
[337713909,1725985831418,-564.46062058,0.0001218,2]
[337713912,1725985831507,-3700.0,0.0001218,2]
[337713913,1725985831520,-940.47405097,0.0001218,2]
[337713914,1725985831532,-1709.87048133,0.0001218,2]
[337713915,1725985831625,-1097.89936782,0.0001218,2]
[337713916,1725985831685,-88.33914207,0.0001218,2]